[Event "Titled Tuesday Blitz March 08 Early 2022"]
[White "Shuvalov, Evgenij"]
[Black "Majella, Rudijanto"]
[WhiteFideId "4187237"]
[BlackFideId "7100680"]
[WhiteElo "2151"]
[BlackElo "2252"]
[Result "0-1"]
[Round "06"]
[TimeControl "180+1"]
[Date "2022.03.09"]
[WhiteClock "0:00:05"]
[BlackClock "0:00:12"]

1. e4 {[%clk 0:03:00]}  e5 {[%clk 0:02:57]} 2. f4 {[%clk 0:02:59]}  exf4 {[%clk 0:02:55]} 3. Bc4 {[%clk 0:02:57]}  Nc6 {[%clk 0:02:54]} 4. Nf3 {[%clk 0:02:48]}  Nf6 {[%clk 0:02:53]} 5. Nc3 {[%clk 0:02:45]}  Bb4 {[%clk 0:02:52]} 6. e5 {[%clk 0:02:42]}  d5 {[%clk 0:02:51]} 7. exf6 {[%clk 0:02:41]}  dxc4 {[%clk 0:02:51]} 8. fxg7 {[%clk 0:02:39]}  Rg8 {[%clk 0:02:50]} 9. Qe2+ {[%clk 0:02:37]}  Be6 {[%clk 0:02:50]} 10. a3 {[%clk 0:02:25]}  Ba5 {[%clk 0:02:31]} 11. b4 {[%clk 0:02:14]}  cxb3 {[%clk 0:02:29]} 12. cxb3 {[%clk 0:02:15]}  Rxg7 {[%clk 0:02:28]} 13. Bb2 {[%clk 0:02:09]}  Rg6 {[%clk 0:02:08]} 14. O-O {[%clk 0:01:56]}  Qd7 {[%clk 0:02:00]} 15. Kh1 {[%clk 0:01:49]}  O-O-O {[%clk 0:01:58]} 16. b4 {[%clk 0:01:45]}  Bb6 {[%clk 0:01:57]} 17. Ne4 {[%clk 0:01:45]}  Nd4 {[%clk 0:01:03]} 18. Nxd4 {[%clk 0:01:36]}  Bxd4 {[%clk 0:01:04]} 19. Bxd4 {[%clk 0:01:35]}  Qxd4 {[%clk 0:01:04]} 20. Rac1 {[%clk 0:01:28]}  Rdg8 {[%clk 0:01:01]} 21. Rf2 {[%clk 0:01:11]}  Bd5 {[%clk 0:00:52]} 22. d3 {[%clk 0:00:37]}  f5 {[%clk 0:00:46]} 23. Nd6+ {[%clk 0:00:27]}  Rxd6 {[%clk 0:00:43]} 24. Qe7 {[%clk 0:00:23]}  Rd7 {[%clk 0:00:32]} 25. Qh4 {[%clk 0:00:23]}  Rdg7 {[%clk 0:00:18]} 26. h3 {[%clk 0:00:15]}  Rxg2 {[%clk 0:00:16]} 27. Rxg2 {[%clk 0:00:13]}  Rxg2 {[%clk 0:00:15]} 28. Qe7 {[%clk 0:00:12]}  Rc2+ {[%clk 0:00:12]} 29. Qe4 {[%clk 0:00:05]}  Bxe4+ {[%clk 0:00:12]} 30. dxe4 {[%clk 0:00:05]}  Qxe4+ {[%clk 0:00:13]} 31. Kg1 {[%clk 0:00:05]}  Qg2# {[%clk 0:00:12]} 0-1


[Site "https://www.chess.com"]

[Event "Titled Tuesday Blitz March 08 Early 2022"]
[White "Stefanov, Plamen"]
[Black "De Arruda, Leandro Formes"]
[WhiteFideId "2900980"]
[BlackFideId "22722009"]
[WhiteElo "2137"]
[BlackElo "1852"]
[Result "1-0"]
[Round "06"]
[TimeControl "180+1"]
[Date "2022.03.09"]
[WhiteClock "0:00:27"]
[BlackClock "0:00:03"]

1. e4 {[%clk 0:02:58]}  e5 {[%clk 0:02:59]} 2. Nf3 {[%clk 0:02:57]}  Nc6 {[%clk 0:02:59]} 3. Bc4 {[%clk 0:02:57]}  Bc5 {[%clk 0:02:58]} 4. d3 {[%clk 0:02:56]}  Nf6 {[%clk 0:02:56]} 5. O-O {[%clk 0:02:56]}  O-O {[%clk 0:02:55]} 6. c3 {[%clk 0:02:57]}  d5 {[%clk 0:02:55]} 7. exd5 {[%clk 0:02:56]}  Nxd5 {[%clk 0:02:56]} 8. h3 {[%clk 0:02:50]}  Rb8 {[%clk 0:02:53]} 9. Qe2 {[%clk 0:02:50]}  Re8 {[%clk 0:02:43]} 10. Re1 {[%clk 0:02:47]}  Na5 {[%clk 0:02:31]} 11. Bb5 {[%clk 0:02:44]}  Bd7 {[%clk 0:02:20]} 12. Bxd7 {[%clk 0:02:42]}  Qxd7 {[%clk 0:02:21]} 13. b3 {[%clk 0:02:42]}  Nc6 {[%clk 0:02:07]} 14. b4 {[%clk 0:02:39]}  Bd6 {[%clk 0:02:00]} 15. a3 {[%clk 0:02:30]}  Nf4 {[%clk 0:01:58]} 16. Bxf4 {[%clk 0:02:23]}  exf4 {[%clk 0:01:58]} 17. Qd1 {[%clk 0:02:20]}  Rxe1+ {[%clk 0:01:58]} 18. Qxe1 {[%clk 0:02:20]}  Re8 {[%clk 0:01:57]} 19. Qf1 {[%clk 0:02:19]}  Ne5 {[%clk 0:01:48]} 20. Nbd2 {[%clk 0:02:17]}  Ng6 {[%clk 0:01:45]} 21. Ne4 {[%clk 0:02:08]}  a6 {[%clk 0:01:36]} 22. Re1 {[%clk 0:02:06]}  h6 {[%clk 0:01:33]} 23. d4 {[%clk 0:02:01]}  Rd8 {[%clk 0:01:25]} 24. c4 {[%clk 0:01:44]}  Qa4 {[%clk 0:01:22]} 25. c5 {[%clk 0:01:35]}  Bf8 {[%clk 0:01:20]} 26. Qd3 {[%clk 0:01:28]}  Ne7 {[%clk 0:01:15]} 27. Ne5 {[%clk 0:01:07]}  Nd5 {[%clk 0:01:07]} 28. Qf3 {[%clk 0:00:56]}  a5 {[%clk 0:00:53]} 29. Qh5 {[%clk 0:00:55]}  g6 {[%clk 0:00:34]} 30. Nxg6 {[%clk 0:00:54]}  fxg6 {[%clk 0:00:35]} 31. Qxg6+ {[%clk 0:00:55]}  Bg7 {[%clk 0:00:32]} 32. Qe6+ {[%clk 0:00:55]}  Kh7 {[%clk 0:00:30]} 33. Qf5+ {[%clk 0:00:52]}  Kg8 {[%clk 0:00:27]} 34. Nd6 {[%clk 0:00:50]}  cxd6 {[%clk 0:00:21]} 35. Qxd5+ {[%clk 0:00:50]}  Kh8 {[%clk 0:00:19]} 36. cxd6 {[%clk 0:00:49]}  Qd7 {[%clk 0:00:18]} 37. Re6 {[%clk 0:00:44]}  axb4 {[%clk 0:00:17]} 38. axb4 {[%clk 0:00:43]}  b6 {[%clk 0:00:14]} 39. b5 {[%clk 0:00:35]}  Qf7 {[%clk 0:00:12]} 40. Qe4 {[%clk 0:00:33]}  Kg8 {[%clk 0:00:08]} 41. Re7 {[%clk 0:00:31]}  Qf6 {[%clk 0:00:07]} 42. d7 {[%clk 0:00:30]}  Kf8 {[%clk 0:00:05]} 43. Re8+ {[%clk 0:00:29]}  Kf7 {[%clk 0:00:04]} 44. Qd5+ {[%clk 0:00:28]}  Kg6 {[%clk 0:00:03]} 45. Re6 {[%clk 0:00:27]} 1-0


[Site "https://www.chess.com"]

[Event "Titled Tuesday Blitz March 08 Early 2022"]
[White "Svane, Frederik"]
[Black "Jary, Sergey"]
[WhiteFideId "12923044"]
[BlackFideId "14110350"]
[WhiteElo "2459"]
[BlackElo "2260"]
[Result "1/2-1/2"]
[Round "06"]
[TimeControl "180+1"]
[Date "2022.03.08"]
[WhiteClock "0:00:04"]
[BlackClock "0:00:29"]

1. e4 {[%clk 0:02:57]}  c5 {[%clk 0:02:59]} 2. Nf3 {[%clk 0:02:56]}  Nc6 {[%clk 0:02:58]} 3. Bb5 {[%clk 0:02:56]}  Qc7 {[%clk 0:02:56]} 4. O-O {[%clk 0:02:53]}  a6 {[%clk 0:02:51]} 5. Bxc6 {[%clk 0:02:52]}  Qxc6 {[%clk 0:02:52]} 6. Nc3 {[%clk 0:02:50]}  e6 {[%clk 0:02:50]} 7. d4 {[%clk 0:02:50]}  d6 {[%clk 0:02:45]} 8. d5 {[%clk 0:02:47]}  Qc7 {[%clk 0:02:45]} 9. dxe6 {[%clk 0:02:47]}  fxe6 {[%clk 0:02:40]} 10. Bf4 {[%clk 0:02:45]}  Be7 {[%clk 0:02:39]} 11. Qd3 {[%clk 0:02:37]}  Nf6 {[%clk 0:02:27]} 12. e5 {[%clk 0:02:31]}  Nh5 {[%clk 0:02:24]} 13. Bd2 {[%clk 0:02:10]}  dxe5 {[%clk 0:02:23]} 14. Rfe1 {[%clk 0:02:11]}  O-O {[%clk 0:02:18]} 15. Rxe5 {[%clk 0:02:06]}  Nf6 {[%clk 0:02:18]} 16. Rae1 {[%clk 0:02:04]}  b5 {[%clk 0:02:07]} 17. Bf4 {[%clk 0:01:24]}  Qb7 {[%clk 0:01:58]} 18. Ng5 {[%clk 0:01:16]}  c4 {[%clk 0:01:58]} 19. Qh3 {[%clk 0:01:13]}  Bd6 {[%clk 0:01:44]} 20. Nce4 {[%clk 0:00:56]}  Bxe5 {[%clk 0:01:44]} 21. Bxe5 {[%clk 0:00:54]}  h6 {[%clk 0:01:37]} 22. Bxf6 {[%clk 0:00:27]}  gxf6 {[%clk 0:01:37]} 23. Nxe6 {[%clk 0:00:26]}  Bxe6 {[%clk 0:01:30]} 24. Qxe6+ {[%clk 0:00:26]}  Qf7 {[%clk 0:01:31]} 25. Nxf6+ {[%clk 0:00:19]}  Kh8 {[%clk 0:01:26]} 26. Ng4 {[%clk 0:00:14]}  Qxe6 {[%clk 0:01:22]} 27. Rxe6 {[%clk 0:00:15]}  Rad8 {[%clk 0:01:23]} 28. g3 {[%clk 0:00:04]}  h5 {[%clk 0:01:19]} 29. Rh6+ {[%clk 0:00:04]}  Kg7 {[%clk 0:01:14]} 30. Rxh5 {[%clk 0:00:05]}  Rd2 {[%clk 0:01:11]} 31. Rg5+ {[%clk 0:00:06]}  Kh7 {[%clk 0:01:07]} 32. h4 {[%clk 0:00:06]}  Rf7 {[%clk 0:01:02]} 33. h5 {[%clk 0:00:03]}  Rxc2 {[%clk 0:00:59]} 34. h6 {[%clk 0:00:03]}  Rxb2 {[%clk 0:00:56]} 35. Ne5 {[%clk 0:00:04]}  Rc7 {[%clk 0:00:51]} 36. Ng4 {[%clk 0:00:02]}  c3 {[%clk 0:00:46]} 37. Nf6+ {[%clk 0:00:02]}  Kxh6 {[%clk 0:00:46]} 38. Rg4 {[%clk 0:00:02]}  Rf7 {[%clk 0:00:40]} 39. Rf4 {[%clk 0:00:01]}  Rxf6 {[%clk 0:00:34]} 40. Rxf6+ {[%clk 0:00:01]}  Kg7 {[%clk 0:00:34]} 41. Rc6 {[%clk 0:00:01]}  c2 {[%clk 0:00:34]} 42. Kg2 {[%clk 0:00:02]}  Rxa2 {[%clk 0:00:35]} 43. Kf3 {[%clk 0:00:01]}  b4 {[%clk 0:00:35]} 44. Ke3 {[%clk 0:00:02]}  b3 {[%clk 0:00:35]} 45. Kd3 {[%clk 0:00:01]}  b2 {[%clk 0:00:35]} 46. Kxc2 {[%clk 0:00:01]}  b1=Q+ {[%clk 0:00:28]} 47. Kxb1 {[%clk 0:00:02]}  Rxf2 {[%clk 0:00:28]} 48. Rxa6 {[%clk 0:00:02]}  Rg2 {[%clk 0:00:28]} 49. Ra3 {[%clk 0:00:02]}  Kg6 {[%clk 0:00:28]} 50. Kc1 {[%clk 0:00:03]}  Kg5 {[%clk 0:00:28]} 51. Kd1 {[%clk 0:00:04]}  Kg4 {[%clk 0:00:29]} 52. Ke1 {[%clk 0:00:05]}  Rxg3 {[%clk 0:00:29]} 53. Rxg3+ {[%clk 0:00:04]}  Kxg3 {[%clk 0:00:29]} 1/2-1/2


[Site "https://www.chess.com"]

[Event "Titled Tuesday Blitz March 08 Early 2022"]
[White "Timofeev, Artyom"]
[Black "Oparin, Grigoriy"]
[WhiteFideId "4140419"]
[BlackFideId "24125890"]
[WhiteElo "2594"]
[BlackElo "2665"]
[Result "1/2-1/2"]
[Round "06"]
[TimeControl "180+1"]
[Date "2022.03.08"]
[WhiteClock "0:00:15"]
[BlackClock "0:00:18"]

1. c4 {[%clk 0:03:00]}  e6 {[%clk 0:02:59]} 2. Nf3 {[%clk 0:02:59]}  d5 {[%clk 0:03:00]} 3. e3 {[%clk 0:02:59]}  Nf6 {[%clk 0:03:00]} 4. b3 {[%clk 0:02:58]}  Bd6 {[%clk 0:03:01]} 5. Bb2 {[%clk 0:02:58]}  O-O {[%clk 0:03:02]} 6. Be2 {[%clk 0:02:58]}  Re8 {[%clk 0:03:02]} 7. O-O {[%clk 0:02:58]}  dxc4 {[%clk 0:02:59]} 8. Bxc4 {[%clk 0:02:55]}  a6 {[%clk 0:02:58]} 9. a4 {[%clk 0:02:54]}  b6 {[%clk 0:02:57]} 10. d3 {[%clk 0:02:52]}  Bb7 {[%clk 0:02:57]} 11. e4 {[%clk 0:02:52]}  Bf8 {[%clk 0:02:53]} 12. Nbd2 {[%clk 0:02:47]}  Nbd7 {[%clk 0:02:53]} 13. Qe2 {[%clk 0:02:40]}  c5 {[%clk 0:02:51]} 14. Rfd1 {[%clk 0:02:36]}  Qb8 {[%clk 0:02:48]} 15. h3 {[%clk 0:02:31]}  Rd8 {[%clk 0:02:30]} 16. Rac1 {[%clk 0:02:25]}  Ne8 {[%clk 0:02:24]} 17. d4 {[%clk 0:02:24]}  Nd6 {[%clk 0:02:23]} 18. Bd3 {[%clk 0:02:20]}  cxd4 {[%clk 0:02:21]} 19. Bxd4 {[%clk 0:02:20]}  Nc5 {[%clk 0:02:19]} 20. Bxc5 {[%clk 0:02:18]}  bxc5 {[%clk 0:02:19]} 21. Ne5 {[%clk 0:02:09]}  Be7 {[%clk 0:01:58]} 22. Ndc4 {[%clk 0:02:01]}  Nxc4 {[%clk 0:01:57]} 23. Nxc4 {[%clk 0:02:00]}  Qc7 {[%clk 0:01:57]} 24. a5 {[%clk 0:01:51]}  Rd4 {[%clk 0:01:57]} 25. Bb1 {[%clk 0:01:39]}  Rad8 {[%clk 0:01:57]} 26. Rxd4 {[%clk 0:01:38]}  cxd4 {[%clk 0:01:56]} 27. Bd3 {[%clk 0:01:37]}  Bb4 {[%clk 0:01:54]} 28. Qh5 {[%clk 0:01:22]}  g6 {[%clk 0:01:49]} 29. Qg5 {[%clk 0:01:22]}  Rc8 {[%clk 0:01:41]} 30. Rc2 {[%clk 0:01:16]}  Qe7 {[%clk 0:01:38]} 31. Qf4 {[%clk 0:00:56]}  f6 {[%clk 0:01:29]} 32. e5 {[%clk 0:00:53]}  fxe5 {[%clk 0:01:27]} 33. Qxe5 {[%clk 0:00:53]}  Bd5 {[%clk 0:01:13]} 34. Qxd4 {[%clk 0:00:52]}  Bc5 {[%clk 0:01:09]} 35. Qe5 {[%clk 0:00:53]}  Rf8 {[%clk 0:01:07]} 36. Ne3 {[%clk 0:00:41]}  Bd6 {[%clk 0:01:00]} 37. Nxd5 {[%clk 0:00:39]}  exd5 {[%clk 0:01:01]} 38. Qxe7 {[%clk 0:00:35]}  Bxe7 {[%clk 0:01:02]} 39. Rc6 {[%clk 0:00:35]}  Rb8 {[%clk 0:00:53]} 40. Bxa6 {[%clk 0:00:33]}  Rxb3 {[%clk 0:00:52]} 41. Be2 {[%clk 0:00:27]}  Ra3 {[%clk 0:00:34]} 42. a6 {[%clk 0:00:26]}  Kf7 {[%clk 0:00:27]} 43. Rc7 {[%clk 0:00:26]}  Ke6 {[%clk 0:00:25]} 44. Bg4+ {[%clk 0:00:23]}  Kf6 {[%clk 0:00:24]} 45. Rc6+ {[%clk 0:00:21]}  Kg7 {[%clk 0:00:18]} 46. g3 {[%clk 0:00:21]}  Bf6 {[%clk 0:00:18]} 47. Kg2 {[%clk 0:00:16]}  Bd4 {[%clk 0:00:18]} 48. Be2 {[%clk 0:00:16]}  Ra2 {[%clk 0:00:18]} 49. Kf3 {[%clk 0:00:16]}  Ra3+ {[%clk 0:00:19]} 50. Kg2 {[%clk 0:00:16]}  Ra2 {[%clk 0:00:19]} 51. Re6 {[%clk 0:00:16]}  Kf7 {[%clk 0:00:19]} 52. Bg4 {[%clk 0:00:16]}  h5 {[%clk 0:00:19]} 53. Rd6 {[%clk 0:00:14]}  hxg4 {[%clk 0:00:18]} 54. Rxd5 {[%clk 0:00:14]}  Rxf2+ {[%clk 0:00:18]} 55. Kh1 {[%clk 0:00:14]}  Be3 {[%clk 0:00:18]} 56. hxg4 {[%clk 0:00:13]}  Ra2 {[%clk 0:00:18]} 57. Rd6 {[%clk 0:00:13]}  g5 {[%clk 0:00:17]} 58. Rc6 {[%clk 0:00:13]}  Ke7 {[%clk 0:00:17]} 59. Rg6 {[%clk 0:00:13]}  Kd7 {[%clk 0:00:15]} 60. Rf6 {[%clk 0:00:13]}  Bd4 {[%clk 0:00:14]} 61. Rg6 {[%clk 0:00:13]}  Be3 {[%clk 0:00:15]} 62. Rf6 {[%clk 0:00:13]}  Ke8 {[%clk 0:00:15]} 63. Re6+ {[%clk 0:00:13]}  Kf7 {[%clk 0:00:15]} 64. Rxe3 {[%clk 0:00:13]}  Rxa6 {[%clk 0:00:16]} 65. Kg2 {[%clk 0:00:14]}  Ra4 {[%clk 0:00:17]} 66. Kf3 {[%clk 0:00:14]}  Kf6 {[%clk 0:00:17]} 67. Rd3 {[%clk 0:00:14]}  Rb4 {[%clk 0:00:17]} 68. Re3 {[%clk 0:00:14]}  Ra4 {[%clk 0:00:17]} 69. Re4 {[%clk 0:00:15]}  Ra3+ {[%clk 0:00:18]} 70. Re3 {[%clk 0:00:15]}  Ra4 {[%clk 0:00:18]} 1/2-1/2


[Site "https://www.chess.com"]

[Event "Titled Tuesday Blitz March 08 Early 2022"]
[White "Van Foreest, Jorden"]
[Black "Murzin, Volodar"]
[WhiteFideId "1039784"]
[BlackFideId "44155573"]
[WhiteElo "2609"]
[BlackElo "2585"]
[Result "0-1"]
[Round "06"]
[TimeControl "180+1"]
[Date "2022.03.08"]
[WhiteClock "0:00:15"]
[BlackClock "0:00:14"]

1. Nf3 {[%clk 0:03:00]}  d5 {[%clk 0:02:57]} 2. b3 {[%clk 0:03:00]}  Bg4 {[%clk 0:02:44]} 3. Bb2 {[%clk 0:03:01]}  Nd7 {[%clk 0:02:38]} 4. g3 {[%clk 0:03:00]}  e5 {[%clk 0:02:36]} 5. Nxe5 {[%clk 0:02:57]}  Nxe5 {[%clk 0:02:36]} 6. Bxe5 {[%clk 0:02:58]}  d4 {[%clk 0:02:36]} 7. h3 {[%clk 0:02:29]}  Be6 {[%clk 0:02:19]} 8. Bg2 {[%clk 0:02:00]}  f6 {[%clk 0:02:17]} 9. Bf4 {[%clk 0:01:50]}  g5 {[%clk 0:02:16]} 10. e3 {[%clk 0:01:35]}  gxf4 {[%clk 0:02:12]} 11. exf4 {[%clk 0:01:36]}  Bd6 {[%clk 0:01:59]} 12. Bxb7 {[%clk 0:01:33]}  Rb8 {[%clk 0:01:57]} 13. Bc6+ {[%clk 0:01:28]}  Kf8 {[%clk 0:01:56]} 14. Bg2 {[%clk 0:01:26]}  Ne7 {[%clk 0:01:55]} 15. O-O {[%clk 0:01:26]}  c5 {[%clk 0:01:50]} 16. d3 {[%clk 0:01:26]}  Qd7 {[%clk 0:01:45]} 17. h4 {[%clk 0:01:20]}  Bd5 {[%clk 0:01:39]} 18. Nd2 {[%clk 0:01:19]}  Bxg2 {[%clk 0:01:36]} 19. Kxg2 {[%clk 0:01:20]}  Rg8 {[%clk 0:01:36]} 20. Ne4 {[%clk 0:01:15]}  Nd5 {[%clk 0:01:32]} 21. Kh2 {[%clk 0:01:10]}  f5 {[%clk 0:01:13]} 22. Ng5 {[%clk 0:01:10]}  h6 {[%clk 0:01:11]} 23. Nh3 {[%clk 0:01:10]}  Nf6 {[%clk 0:01:03]} 24. Qf3 {[%clk 0:01:08]}  Kf7 {[%clk 0:00:56]} 25. Rfe1 {[%clk 0:01:06]}  Rge8 {[%clk 0:00:52]} 26. Kg2 {[%clk 0:01:05]}  Ng4 {[%clk 0:00:42]} 27. Qd5+ {[%clk 0:01:01]}  Kf8 {[%clk 0:00:39]} 28. Ng1 {[%clk 0:00:59]}  Qb7 {[%clk 0:00:31]} 29. Rxe8+ {[%clk 0:00:46]}  Kxe8 {[%clk 0:00:30]} 30. Re1+ {[%clk 0:00:45]}  Ne3+ {[%clk 0:00:25]} 31. Rxe3+ {[%clk 0:00:41]}  dxe3 {[%clk 0:00:24]} 32. Qxb7 {[%clk 0:00:42]}  Rxb7 {[%clk 0:00:24]} 33. fxe3 {[%clk 0:00:42]}  Kd7 {[%clk 0:00:24]} 34. Ne2 {[%clk 0:00:41]}  Ke6 {[%clk 0:00:23]} 35. Kf3 {[%clk 0:00:39]}  Bc7 {[%clk 0:00:23]} 36. g4 {[%clk 0:00:35]}  Bd8 {[%clk 0:00:22]} 37. g5 {[%clk 0:00:35]}  Rh7 {[%clk 0:00:20]} 38. g6 {[%clk 0:00:33]}  Rd7 {[%clk 0:00:18]} 39. h5 {[%clk 0:00:33]}  Bh4 {[%clk 0:00:17]} 40. c4 {[%clk 0:00:32]}  Rxd3 {[%clk 0:00:17]} 41. b4 {[%clk 0:00:26]}  Be7 {[%clk 0:00:15]} 42. Ng3 {[%clk 0:00:14]}  cxb4 {[%clk 0:00:15]} 43. Nxf5 {[%clk 0:00:15]}  Kxf5 {[%clk 0:00:14]} 0-1


[Site "https://www.chess.com"]

[Event "Titled Tuesday Blitz March 08 Early 2022"]
[White "Van den Dikkenberg, Erik"]
[Black "Baches Garcia, Guillermo"]
[WhiteFideId "1005880"]
[BlackFideId "2209764"]
[WhiteElo "2118"]
[BlackElo "2410"]
[Result "0-1"]
[Round "06"]
[TimeControl "180+1"]
[Date "2022.03.09"]
[WhiteClock "0:00:11"]
[BlackClock "0:00:42"]

1. e4 {[%clk 0:03:00]}  c5 {[%clk 0:03:00]} 2. Nc3 {[%clk 0:02:59]}  d6 {[%clk 0:02:59]} 3. f4 {[%clk 0:03:00]}  Nc6 {[%clk 0:02:58]} 4. Nf3 {[%clk 0:03:00]}  g6 {[%clk 0:02:58]} 5. Bb5 {[%clk 0:03:00]}  Bg7 {[%clk 0:02:58]} 6. Bxc6+ {[%clk 0:03:00]}  bxc6 {[%clk 0:02:57]} 7. O-O {[%clk 0:03:00]}  Nf6 {[%clk 0:02:53]} 8. d3 {[%clk 0:03:01]}  O-O {[%clk 0:02:53]} 9. Qe1 {[%clk 0:03:00]}  c4 {[%clk 0:02:51]} 10. d4 {[%clk 0:02:59]}  Qb6 {[%clk 0:02:37]} 11. Kh1 {[%clk 0:02:56]}  Bg4 {[%clk 0:02:34]} 12. e5 {[%clk 0:02:24]}  Nd5 {[%clk 0:02:30]} 13. Nxd5 {[%clk 0:01:50]}  cxd5 {[%clk 0:02:29]} 14. c3 {[%clk 0:01:50]}  Bf5 {[%clk 0:02:00]} 15. Nh4 {[%clk 0:01:41]}  Be4 {[%clk 0:01:57]} 16. f5 {[%clk 0:01:37]}  dxe5 {[%clk 0:01:53]} 17. dxe5 {[%clk 0:01:31]}  Bxe5 {[%clk 0:01:51]} 18. Bh6 {[%clk 0:01:31]}  Qxb2 {[%clk 0:01:47]} 19. fxg6 {[%clk 0:01:22]}  hxg6 {[%clk 0:01:40]} 20. Bxf8 {[%clk 0:01:15]}  Rxf8 {[%clk 0:01:40]} 21. Rc1 {[%clk 0:00:55]}  Kg7 {[%clk 0:01:25]} 22. Nf3 {[%clk 0:00:53]}  Bf6 {[%clk 0:01:23]} 23. Rf2 {[%clk 0:00:49]}  Qb6 {[%clk 0:01:20]} 24. Nd2 {[%clk 0:00:22]}  Bd3 {[%clk 0:01:08]} 25. Nf3 {[%clk 0:00:18]}  Rh8 {[%clk 0:01:02]} 26. h3 {[%clk 0:00:17]}  Qd6 {[%clk 0:00:59]} 27. Rd1 {[%clk 0:00:15]}  Be4 {[%clk 0:00:58]} 28. Rd4 {[%clk 0:00:12]}  Bxd4 {[%clk 0:00:49]} 29. Nxd4 {[%clk 0:00:12]}  Rxh3+ {[%clk 0:00:43]} 30. Kg1 {[%clk 0:00:12]}  Qh2+ {[%clk 0:00:42]} 31. Kf1 {[%clk 0:00:12]}  Bd3+ {[%clk 0:00:42]} 32. Ne2 {[%clk 0:00:11]}  Qh1# {[%clk 0:00:42]} 0-1


[Site "https://www.chess.com"]

[Event "Titled Tuesday Blitz March 08 Early 2022"]
[White "Vasquez Schroeder, Rodrigo"]
[Black "Kouskoutis, Georgios-Alexandros"]
[WhiteFideId "3400042"]
[BlackFideId "4234049"]
[WhiteElo "2561"]
[BlackElo "2130"]
[Result "1-0"]
[Round "06"]
[TimeControl "180+1"]
[Date "2022.03.08"]
[WhiteClock "0:02:28"]
[BlackClock "0:00:01"]

1. e4 {[%clk 0:03:00]}  c5 {[%clk 0:02:59]} 2. Nf3 {[%clk 0:03:00]}  e6 {[%clk 0:02:59]} 3. d4 {[%clk 0:03:01]}  cxd4 {[%clk 0:03:00]} 4. Nxd4 {[%clk 0:03:01]}  Nc6 {[%clk 0:02:59]} 5. Nb5 {[%clk 0:03:01]}  d6 {[%clk 0:02:59]} 6. c4 {[%clk 0:03:00]}  Nf6 {[%clk 0:02:51]} 7. N1c3 {[%clk 0:03:00]}  a6 {[%clk 0:02:50]} 8. Na3 {[%clk 0:03:00]}  Be7 {[%clk 0:02:48]} 9. Be2 {[%clk 0:03:00]}  O-O {[%clk 0:02:48]} 10. O-O {[%clk 0:03:01]}  b6 {[%clk 0:02:48]} 11. Be3 {[%clk 0:03:01]}  Bb7 {[%clk 0:02:47]} 12. Rc1 {[%clk 0:03:02]}  Ne5 {[%clk 0:02:44]} 13. f3 {[%clk 0:03:01]}  Rc8 {[%clk 0:02:35]} 14. Qd2 {[%clk 0:03:01]}  Qc7 {[%clk 0:02:31]} 15. Rfd1 {[%clk 0:03:01]}  Rfd8 {[%clk 0:02:12]} 16. Kh1 {[%clk 0:03:00]}  Ned7 {[%clk 0:02:00]} 17. Bf1 {[%clk 0:02:58]}  Bf8 {[%clk 0:01:58]} 18. Qf2 {[%clk 0:02:58]}  g6 {[%clk 0:01:25]} 19. Rc2 {[%clk 0:02:57]}  h5 {[%clk 0:01:17]} 20. Rcd2 {[%clk 0:02:57]}  Bc6 {[%clk 0:01:02]} 21. Bg5 {[%clk 0:02:52]}  Re8 {[%clk 0:00:57]} 22. Nc2 {[%clk 0:02:49]}  Qb8 {[%clk 0:00:44]} 23. a4 {[%clk 0:02:46]}  a5 {[%clk 0:00:36]} 24. b3 {[%clk 0:02:44]}  Nh7 {[%clk 0:00:34]} 25. Bf4 {[%clk 0:02:42]}  e5 {[%clk 0:00:20]} 26. Be3 {[%clk 0:02:41]}  Nhf6 {[%clk 0:00:20]} 27. Na3 {[%clk 0:02:39]}  Nc5 {[%clk 0:00:19]} 28. Rb1 {[%clk 0:02:38]}  Rcd8 {[%clk 0:00:13]} 29. Nab5 {[%clk 0:02:38]}  Be7 {[%clk 0:00:12]} 30. Rdd1 {[%clk 0:02:37]}  Rf8 {[%clk 0:00:10]} 31. Qd2 {[%clk 0:02:36]}  Kh7 {[%clk 0:00:07]} 32. Bg5 {[%clk 0:02:34]}  Ng8 {[%clk 0:00:03]} 33. Be3 {[%clk 0:02:33]}  Rd7 {[%clk 0:00:03]} 34. Nd5 {[%clk 0:02:32]}  Bxd5 {[%clk 0:00:03]} 35. cxd5 {[%clk 0:02:32]}  Rc8 {[%clk 0:00:03]} 36. Na3 {[%clk 0:02:31]}  Bd8 {[%clk 0:00:02]} 37. Bb5 {[%clk 0:02:31]}  Re7 {[%clk 0:00:02]} 38. Bc6 {[%clk 0:02:31]}  Bc7 {[%clk 0:00:02]} 39. b4 {[%clk 0:02:31]}  axb4 {[%clk 0:00:01]} 40. Rxb4 {[%clk 0:02:31]}  Qa7 {[%clk 0:00:01]} 41. Nb5 {[%clk 0:02:31]}  Qa5 {[%clk 0:00:02]} 42. Rdb1 {[%clk 0:02:30]}  Nf6 {[%clk 0:00:01]} 43. Qc2 {[%clk 0:02:28]}  Kg7 {[%clk 0:00:01]} 44. Bd2 {[%clk 0:02:28]} 1-0


[Site "https://www.chess.com"]